[Event "Torneo Nuevo Centro. Jornada 10"]
[Site "Chess.com"]
[Date "2020.08.21"]
[Round "4"]
[White "Marques Montolio, Luis"]
[Black "Mancebo Ibanez, Fernando"]
[Result "0-1"]
[WhiteElo "1435"]
[BlackElo "2096"]
[TimeControl "180+2"]
[EndTime "11:15:47 PDT"]
[Termination "Victoria de Ferval64 por abandono"]

1. e4 {[%clk 0:03:01.5]} 1... d5 {[%clk 0:02:59.3]} 2. exd5 {[%clk 0:03:01.5]}
2... Nf6 {[%clk 0:03:00.9]} 3. Nc3 {[%clk 0:03:01.5]} 3... Nxd5 {[%clk
0:03:01.8]} 4. Bc4 {[%clk 0:03:01.1]} 4... Nb6 {[%clk 0:03:01.1]} 5. Bb3 {[%clk
0:03:00.9]} 5... Nc6 {[%clk 0:03:02.2]} 6. Qf3 {[%clk 0:03:00.7]} 6... e6 {[%clk
0:03:01.7]} 7. a3 {[%clk 0:02:54.1]} 7... Be7 {[%clk 0:02:58.5]} 8. Nge2 {[%clk
0:02:52.5]} 8... O-O {[%clk 0:02:56.2]} 9. O-O {[%clk 0:02:52.9]} 9... Bd7
{[%clk 0:02:48.5]} 10. Ne4 {[%clk 0:02:52.7]} 10... Ne5 {[%clk 0:02:43.7]} 11.
Qh3 {[%clk 0:02:46]} 11... Bc6 {[%clk 0:02:32.9]} 12. N4g3 {[%clk 0:02:33.9]}
12... Ng6 {[%clk 0:02:32]} 13. d4 {[%clk 0:02:25.8]} 13... Bd5 {[%clk 0:02:25]}
14. Bxd5 {[%clk 0:02:22.2]} 14... exd5 {[%clk 0:02:25.7]} 15. Nf4 {[%clk
0:02:12.6]} 15... Bf6 {[%clk 0:02:23.3]} 16. Nxg6 {[%clk 0:02:12.6]} 16... hxg6
{[%clk 0:02:23.7]} 17. c3 {[%clk 0:02:13.6]} 17... Nc4 {[%clk 0:02:23.1]} 18. b3
{[%clk 0:02:11.5]} 18... Nd6 {[%clk 0:02:11.2]} 19. f4 {[%clk 0:02:09.9]} 19...
Re8 {[%clk 0:02:09.6]} 20. Bb2 {[%clk 0:02:07.2]} 20... Re3 {[%clk 0:02:04.8]}
21. Rf3 {[%clk 0:02:04.3]} 21... Rxf3 {[%clk 0:02:04.1]} 22. gxf3 {[%clk
0:02:04.2]} 22... Qe7 {[%clk 0:02:05.6]} 23. Qg2 {[%clk 0:01:56.6]} 23... Qe3+
{[%clk 0:02:03.5]} 24. Qf2 {[%clk 0:01:53.9]} 24... Qxf4 {[%clk 0:02:02.7]} 25.
Bc1 {[%clk 0:01:42]} 25... Qh4 {[%clk 0:01:52.4]} 26. Bd2 {[%clk 0:01:37.7]}
26... Re8 {[%clk 0:01:52.5]} 27. Kg2 {[%clk 0:01:34.5]} 27... Bg5 {[%clk
0:01:35.9]} 28. Bxg5 {[%clk 0:01:28.5]} 28... Qxg5 {[%clk 0:01:34.3]} 29. Re1
{[%clk 0:01:25.6]} 29... Re6 {[%clk 0:01:19.9]} 30. Rxe6 {[%clk 0:01:19.3]}
30... fxe6 {[%clk 0:01:20.9]} 31. Qe2 {[%clk 0:01:14.2]} 31... Kf7 {[%clk
0:01:19.5]} 32. f4 {[%clk 0:01:08.2]} 32... Qe7 {[%clk 0:01:13.4]} 33. h3 {[%clk
0:00:57.9]} 33... Nf5 {[%clk 0:01:11.4]} 34. Nxf5 {[%clk 0:00:55.9]} 34... gxf5
{[%clk 0:01:10.9]} 35. Qe5 {[%clk 0:00:53.3]} 35... Qd6 {[%clk 0:00:55.1]} 36.
Qe3 {[%clk 0:00:47.6]} 36... Qxa3 {[%clk 0:00:53.9]} 37. b4 {[%clk 0:00:44.2]}
37... a5 {[%clk 0:00:50.2]} 38. bxa5 {[%clk 0:00:39.7]} 38... Qxa5 {[%clk
0:00:50.1]} 39. Qe2 {[%clk 0:00:40.1]} 39... Qxc3 {[%clk 0:00:43.1]} 40. Qh5+
{[%clk 0:00:40.2]} 40... Ke7 {[%clk 0:00:37.8]} 41. Qg5+ {[%clk 0:00:40.4]}
41... Kf7 {[%clk 0:00:33.1]} 42. Qh5+ {[%clk 0:00:40.2]} 42... Ke7 {[%clk
0:00:27.3]} 43. Qg5+ {[%clk 0:00:40.7]} 43... Kd6 {[%clk 0:00:27.2]} 44. Qd8+
{[%clk 0:00:34.8]} 44... Kc6 {[%clk 0:00:27.4]} 45. Qe8+ {[%clk 0:00:33.1]}
45... Kd6 {[%clk 0:00:25.5]} 46. Qd8+ {[%clk 0:00:30.7]} 46... Kc6 {[%clk
0:00:26.6]} 47. Qe8+ {[%clk 0:00:30.4]} 47... Kb6 {[%clk 0:00:27.3]} 48. Qxe6+
{[%clk 0:00:30.2]} 48... c6 {[%clk 0:00:27.2]} 49. Qxf5 {[%clk 0:00:26.5]} 49...
Qd2+ {[%clk 0:00:23.6]} 50. Kg3 {[%clk 0:00:26.2]} 50... Qxd4 {[%clk 0:00:21.2]}
51. Kg4 {[%clk 0:00:25.6]} 51... Qg1+ {[%clk 0:00:20.5]} 52. Kh4 {[%clk
0:00:26.3]} 52... Qf2+ {[%clk 0:00:13]} 53. Kg4 {[%clk 0:00:24.8]} 53... Qg2+
{[%clk 0:00:13.5]} 54. Kh4 {[%clk 0:00:25.6]} 54... Qf3 {[%clk 0:00:12.4]} 55.
Qg4 {[%clk 0:00:15.6]} 55... Qf2+ {[%clk 0:00:10.7]} 56. Kg5 {[%clk 0:00:14.5]}
56... Qb2 {[%clk 0:00:10.4]} 57. Kh4 {[%clk 0:00:10.7]} 57... Qf6+ {[%clk
0:00:10.8]} 58. Qg5 {[%clk 0:00:11.3]} 58... d4 {[%clk 0:00:08.3]} 59. Qxf6
{[%clk 0:00:10.7]} 59... gxf6 {[%clk 0:00:08.9]} 60. Kg3 {[%clk 0:00:10.8]}
60... c5 {[%clk 0:00:07.8]} 61. h4 {[%clk 0:00:10.7]} 61... c4 {[%clk
0:00:09.3]} 62. h5 {[%clk 0:00:11]} 62... c3 {[%clk 0:00:10.5]} 63. h6 {[%clk
0:00:11.9]} 63... c2 {[%clk 0:00:12.1]} 64. h7 {[%clk 0:00:12.6]} 64... c1=Q
{[%clk 0:00:13.4]} 65. h8=Q {[%clk 0:00:12.5]} 65... Qe1+ {[%clk 0:00:12.3]} 66.
Kf3 {[%clk 0:00:12]} 66... Qe3+ {[%clk 0:00:13]} 67. Kg4 {[%clk 0:00:13]} 67...
Qg1+ {[%clk 0:00:13.1]} 68. Kf5 {[%clk 0:00:13.3]} 68... Qb1+ {[%clk 0:00:13.4]}
69. Ke6 {[%clk 0:00:12.9]} 69... Qb3+ {[%clk 0:00:12.4]} 70. Kxf6 {[%clk
0:00:12.7]} 70... d3 {[%clk 0:00:12.3]} 71. Qd8+ {[%clk 0:00:10.3]} 71... Ka7
{[%clk 0:00:11.6]} 72. Qd4+ {[%clk 0:00:09.5]} 72... Qb6+ {[%clk 0:00:12.2]} 73.
Qxb6+ {[%clk 0:00:07.1]} 73... Kxb6 {[%clk 0:00:13.3]} 74. Ke7 {[%clk
0:00:07.1]} 74... d2 {[%clk 0:00:14.7]} 75. f5 {[%clk 0:00:08.6]} 75... d1=Q
{[%clk 0:00:16.3]} 76. f6 {[%clk 0:00:10.5]} 76... Qe2+ {[%clk 0:00:16.8]} 77.
Kd7 {[%clk 0:00:08.1]} 77... Qf3 {[%clk 0:00:15.2]} 78. Ke7 {[%clk 0:00:08.1]}
78... Kc5 {[%clk 0:00:14.1]} 79. f7 {[%clk 0:00:09]} 79... Qxf7+ {[%clk
0:00:14.7]} 80. Kxf7 {[%clk 0:00:09.4]} 80... b5 {[%clk 0:00:16.2]} 81. Kf6
{[%clk 0:00:11.3]} 81... b4 {[%clk 0:00:17.7]} 82. Kf5 {[%clk 0:00:13.2]} 82...
b3 {[%clk 0:00:19.2]} 83. Kf4 {[%clk 0:00:15.1]} 83... b2 {[%clk 0:00:20.6]} 84.
Kf3 {[%clk 0:00:17]} 84... b1=Q {[%clk 0:00:22.2]} 85. Ke3 {[%clk 0:00:18.9]}
85... Qd1 {[%clk 0:00:22.2]} 0

[Event "Torneo Nuevo Centro. Jornada 10"]
[Site "Chess.com"]
[Date "2020.08.21"]
[Round "4"]
[White "Sos Andreu, Eric"]
[Black "Macias Pino, Diego"]
[Result "1/2-1/2"]
[WhiteElo "2514"]
[BlackElo "2240"]
[TimeControl "180+2"]
[EndTime "11:16:08 PDT"]
[Termination "Tablas por rey ahogado"]

1. d4 {[%clk 0:03:01.9]} 1... d5 {[%clk 0:03:00.3]} 2. c4 {[%clk 0:02:56.5]}
2... dxc4 {[%clk 0:03:02.2]} 3. e3 {[%clk 0:02:57.3]} 3... a6 {[%clk 0:03:02.8]}
4. Bxc4 {[%clk 0:02:57.6]} 4... Nf6 {[%clk 0:03:02.2]} 5. Nf3 {[%clk 0:02:55.6]}
5... b5 {[%clk 0:03:02]} 6. Be2 {[%clk 0:02:56.6]} 6... Bb7 {[%clk 0:03:00.4]}
7. O-O {[%clk 0:02:57.6]} 7... e6 {[%clk 0:03:01.4]} 8. a4 {[%clk 0:02:58.2]}
8... b4 {[%clk 0:03:02.4]} 9. Nbd2 {[%clk 0:02:56.1]} 9... Nbd7 {[%clk
0:03:00.1]} 10. a5 {[%clk 0:02:54.8]} 10... c5 {[%clk 0:03:00.1]} 11. dxc5
{[%clk 0:02:55.3]} 11... Nxc5 {[%clk 0:02:39.6]} 12. Nc4 {[%clk 0:02:49.5]}
12... Be7 {[%clk 0:02:10]} 13. Nd4 {[%clk 0:02:44.2]} 13... Qc7 {[%clk
0:02:02.6]} 14. Nb6 {[%clk 0:02:39.6]} 14... Rd8 {[%clk 0:02:02.7]} 15. Bf3
{[%clk 0:02:34.5]} 15... e5 {[%clk 0:01:46.9]} 16. Bxb7 {[%clk 0:02:34.4]} 16...
Qxb7 {[%clk 0:01:44.2]} 17. Qc2 {[%clk 0:01:21.1]} 17... exd4 {[%clk 0:01:42.7]}
18. exd4 {[%clk 0:01:22.2]} 18... Ne6 {[%clk 0:01:41.3]} 19. Be3 {[%clk
0:01:16.7]} 19... O-O {[%clk 0:01:35.4]} 20. Rad1 {[%clk 0:01:02.4]} 20... Nd5
{[%clk 0:01:31.4]} 21. Nc4 {[%clk 0:00:32.8]} 21... Bf6 {[%clk 0:01:24.5]} 22.
Qe4 {[%clk 0:00:30.6]} 22... Qa8 {[%clk 0:01:16.4]} 23. Ne5 {[%clk 0:00:28.8]}
23... Nxe3 {[%clk 0:01:10.4]} 24. Qxe3 {[%clk 0:00:26.9]} 24... Rd6 {[%clk
0:01:03.2]} 25. d5 {[%clk 0:00:25.5]} 25... Rxd5 {[%clk 0:00:39.3]} 26. Ng4
{[%clk 0:00:24.8]} 26... Bg5 {[%clk 0:00:35.6]} 27. Qg3 {[%clk 0:00:20.2]} 27...
Rxd1 {[%clk 0:00:36.4]} 28. Rxd1 {[%clk 0:00:22]} 28... Rd8 {[%clk 0:00:36.3]}
29. Rf1 {[%clk 0:00:22.4]} 29... Kh8 {[%clk 0:00:29.1]} 30. h4 {[%clk
0:00:23.6]} 30... Bf4 {[%clk 0:00:29.9]} 31. Qb3 {[%clk 0:00:20.8]} 31... Qd5
{[%clk 0:00:31.2]} 32. Qc2 {[%clk 0:00:20.1]} 32... Qh5 {[%clk 0:00:29.5]} 33.
f3 {[%clk 0:00:14.7]} 33... Qc5+ {[%clk 0:00:29.8]} 34. Qxc5 {[%clk 0:00:15.1]}
34... Nxc5 {[%clk 0:00:31.7]} 35. Re1 {[%clk 0:00:14.8]} 35... Ne6 {[%clk
0:00:31.5]} 36. Re4 {[%clk 0:00:14.2]} 36... Bg3 {[%clk 0:00:30.7]} 37. Kf1
{[%clk 0:00:14.6]} 37... Rd1+ {[%clk 0:00:31.3]} 38. Ke2 {[%clk 0:00:15.1]}
38... Re1+ {[%clk 0:00:29.8]} 39. Kd2 {[%clk 0:00:16]} 39... Rxe4 {[%clk
0:00:30.6]} 40. fxe4 {[%clk 0:00:17.9]} 40... Nc5 {[%clk 0:00:28.9]} 41. Ke3
{[%clk 0:00:16.1]} 41... f6 {[%clk 0:00:26.8]} 42. h5 {[%clk 0:00:16]} 42... Bd6
{[%clk 0:00:26.5]} 43. h6 {[%clk 0:00:16.5]} 43... Kg8 {[%clk 0:00:26.5]} 44.
hxg7 {[%clk 0:00:17.7]} 44... Kxg7 {[%clk 0:00:28.4]} 45. Kd4 {[%clk 0:00:17.7]}
45... Nb3+ {[%clk 0:00:24.3]} 46. Kd5 {[%clk 0:00:18.1]} 46... Bf8 {[%clk
0:00:25.1]} 47. Kc4 {[%clk 0:00:17.6]} 47... Nxa5+ {[%clk 0:00:26.1]} 48. Kd5
{[%clk 0:00:19.1]} 48... Nb3 {[%clk 0:00:25.1]} 49. Ke6 {[%clk 0:00:17.4]} 49...
Nd2 {[%clk 0:00:24.2]} 50. Nxf6 {[%clk 0:00:17.8]} 50... Nc4 {[%clk 0:00:25.1]}
51. Ne8+ {[%clk 0:00:18.1]} 51... Kg8 {[%clk 0:00:25.3]} 52. Nf6+ {[%clk
0:00:18.4]} 52... Kh8 {[%clk 0:00:25]} 53. b3 {[%clk 0:00:19.1]} 53... Nd2
{[%clk 0:00:23.8]} 54. Kf7 {[%clk 0:00:17.4]} 54... Bg7 {[%clk 0:00:24]} 55. e5
{[%clk 0:00:15.2]} 55... Ne4 {[%clk 0:00:17.1]} 56. Nxe4 {[%clk 0:00:11.7]}
56... Bxe5 {[%clk 0:00:19]} 57. Nc5 {[%clk 0:00:08.3]} 57... a5 {[%clk
0:00:18.1]} 58. g4 {[%clk 0:00:07.7]} 58... h6 {[%clk 0:00:18.4]} 59. Kg6 {[%clk
0:00:08.1]} 59... Bd4 {[%clk 0:00:18.1]} 60. Na4 {[%clk 0:00:06.1]} 60... Be3
{[%clk 0:00:16.3]} 61. Kf7 {[%clk 0:00:07.3]} 61... Kh7 {[%clk 0:00:17.3]} 62.
Nb2 {[%clk 0:00:08.4]} 62... Bd4 {[%clk 0:00:15.4]} 63. Nc4 {[%clk 0:00:09.2]}
63... a4 {[%clk 0:00:13.2]} 64. bxa4 {[%clk 0:00:11]} 64... b3 {[%clk
0:00:14.7]} 65. a5 {[%clk 0:00:08.4]} 65... b2 {[%clk 0:00:16.1]} 66. Nd2 {[%clk
0:00:09.6]} 66... Bc3 {[%clk 0:00:12.4]} 67. Nb1 {[%clk 0:00:05.2]} 67... Bxa5
{[%clk 0:00:13.7]} 68. Kf6 {[%clk 0:00:06.6]} 68... Bc7 {[%clk 0:00:08.4]} 69.
Kf7 {[%clk 0:00:04.1]} 69... Be5 {[%clk 0:00:08.8]} 70. Ke6 {[%clk 0:00:05.2]}
70... Bd4 {[%clk 0:00:09]} 71. Kf7 {[%clk 0:00:06]} 71... Bh8 {[%clk 0:00:08.9]}
72. Na3 {[%clk 0:00:06.6]} 72... Bc3 {[%clk 0:00:09.5]} 73. Nb1 {[%clk
0:00:07.6]} 73... Bb4 {[%clk 0:00:08.7]} 74. Kf6 {[%clk 0:00:07.2]} 74... Kg8
{[%clk 0:00:07.6]} 75. Kg6 {[%clk 0:00:07.1]} 75... Bf8 {[%clk 0:00:07]} 76. g5
{[%clk 0:00:08.4]} 76... hxg5 {[%clk 0:00:06.7]} 77. Kxg5 {[%clk 0:00:10.3]}
77... Kf7 {[%clk 0:00:08.6]} 78. Kf5 {[%clk 0:00:11.9]} 78... Ke7 {[%clk
0:00:10.1]} 79. Ke4 {[%clk 0:00:13.8]} 79... Kd6 {[%clk 0:00:12]} 80. Kd3 {[%clk
0:00:15.6]} 80... Kc5 {[%clk 0:00:13.5]} 81. Kc2 {[%clk 0:00:17.5]} 81... Bg7
{[%clk 0:00:15.2]} 82. Nd2 {[%clk 0:00:16.9]} 82... Kb4 {[%clk 0:00:16.6]} 83.
Kb1 {[%clk 0:00:17.5]} 83... Bf6 {[%clk 0:00:13.3]} 84. Ne4 {[%clk 0:00:17.8]}
84... Bd4 {[%clk 0:00:11.6]} 85. Ng3 {[%clk 0:00:15.7]} 85... Kb3 {[%clk
0:00:09.9]} 86. Ne4 {[%clk 0:00:11.1]} 86... Be3 {[%clk 0:00:09.2]} 87. Nc5+
{[%clk 0:00:08.5]} 87... Bxc5 {[%clk 0:00:09.5]} 1/2-1

[Event "Torneo Nuevo Centro. Jornada 10"]
[Site "Chess.com"]
[Date "2020.08.21"]
[Round "5"]
[White "Vicent Lázaro, Elena"]
[Black "Méndez Giménez , Néstor Emmanuel"]
[Result "0-1"]
[WhiteElo "653"]
[BlackElo "1238"]
[TimeControl "180+2"]
[EndTime "11:18:04 PDT"]
[Termination "Victoria de NestorMendez8 por abandono"]

1. e3 {[%clk 0:03:00]} 1... e5 {[%clk 0:03:01.9]} 2. c4 {[%clk 0:02:55.5]} 2...
Nc6 {[%clk 0:03:03.8]} 3. Nc3 {[%clk 0:02:54.6]} 3... Nf6 {[%clk 0:03:04.2]} 4.
Bd3 {[%clk 0:02:54.6]} 4... Bc5 {[%clk 0:03:04.9]} 5. Bb1 {[%clk 0:02:53.7]}
5... b6 {[%clk 0:03:05.2]} 6. Qc2 {[%clk 0:02:52.3]} 6... Bb7 {[%clk 0:03:05.8]}
7. Nf3 {[%clk 0:02:38.1]} 7... Nb4 {[%clk 0:03:06]} 8. Qd3 {[%clk 0:02:35.6]}
8... Nxd3+ {[%clk 0:03:06.6]} 9. Bxd3 {[%clk 0:02:32.3]} 9... Bxf3 {[%clk
0:03:07.2]} 10. gxf3 {[%clk 0:02:32.1]} 10... O-O {[%clk 0:03:07.3]} 11. Rg1
{[%clk 0:02:18.2]} 11... d5 {[%clk 0:03:02.8]} 0

[Event "Torneo Nuevo Centro. Jornada 10"]
[Site "Chess.com"]
[Date "2020.08.21"]
[Round "5"]
[White "Garrido Silos, Pablo"]
[Black "Perrot, Fabien "]
[Result "1-0"]
[WhiteElo "1456"]
[BlackElo "1112"]
[TimeControl "180+2"]
[EndTime "11:19:23 PDT"]
[Termination "Victoria de Picotina por abandono"]

1. e4 {[%clk 0:03:01.9]} 1... e5 {[%clk 0:02:58.5]} 2. Nf3 {[%clk 0:03:02.5]}
2... Nc6 {[%clk 0:02:47.5]} 3. Bb5 {[%clk 0:03:01.6]} 3... a6 {[%clk 0:02:47.8]}
4. Bxc6 {[%clk 0:03:01.2]} 4... dxc6 {[%clk 0:02:48.7]} 5. O-O {[%clk
0:03:01.5]} 5... Nf6 {[%clk 0:02:47.1]} 6. Nxe5 {[%clk 0:03:01.4]} 6... Bd6
{[%clk 0:02:43.2]} 7. Nf3 {[%clk 0:03:00.3]} 7... O-O {[%clk 0:02:43.4]} 8. e5
{[%clk 0:02:59.9]} 8... Bxe5 {[%clk 0:02:33.4]} 9. Nxe5 {[%clk 0:02:59.5]} 9...
Re8 {[%clk 0:02:35.3]} 10. Nf3 {[%clk 0:02:59.5]} 10... Bg4 {[%clk 0:02:35.1]}
11. h3 {[%clk 0:02:57.3]} 11... Bh5 {[%clk 0:02:35.9]} 12. d3 {[%clk 0:02:56.6]}
12... Qd5 {[%clk 0:02:32.7]} 13. Nc3 {[%clk 0:02:48.9]} 13... Bxf3 {[%clk
0:02:30.9]} 14. Nxd5 {[%clk 0:02:39.7]} 14... Bxd1 {[%clk 0:02:31.6]} 15. Nxf6+
{[%clk 0:02:31.3]} 15... gxf6 {[%clk 0:02:31.3]} 16. Rxd1 {[%clk 0:02:31.2]}
16... Re7 {[%clk 0:02:30.9]} 17. Be3 {[%clk 0:02:31]} 17... Rae8 {[%clk
0:02:31.8]} 18. Re1 {[%clk 0:02:31.4]} 18... f5 {[%clk 0:02:32.4]} 19. Kf1
{[%clk 0:02:30.6]} 19... Re5 {[%clk 0:02:29.2]} 20. Bf4 {[%clk 0:02:30.6]} 20...
Rxe1+ {[%clk 0:02:26.2]} 21. Rxe1 {[%clk 0:02:32.5]} 21... Rc8 {[%clk
0:02:27.9]} 22. Re7 {[%clk 0:02:31.6]} 22... Kg7 {[%clk 0:02:28.8]} 23. Rxc7
{[%clk 0:02:29.7]} 23... Rb8 {[%clk 0:02:29.5]} 24. Rxf7+ {[%clk 0:02:29.3]}
24... Kxf7 {[%clk 0:02:30.7]} 25. Bxb8 {[%clk 0:02:31.2]} 1

[Event "Torneo Nuevo Centro. Jornada 10"]
[Site "Chess.com"]
[Date "2020.08.21"]
[Round "5"]
[White "Rausell Taberner, Diego"]
[Black "Serrano Requena, Guillem"]
[Result "0-1"]
[WhiteElo "674"]
[BlackElo "1269"]
[TimeControl "180+2"]
[EndTime "11:21:14 PDT"]
[Termination "Victoria de Guily351 por abandono"]

1. e4 {[%clk 0:03:00.8]} 1... c5 {[%clk 0:02:57.9]} 2. Nf3 {[%clk 0:02:59.5]}
2... Nc6 {[%clk 0:02:52.1]} 3. Bc4 {[%clk 0:03:00.1]} 3... e6 {[%clk 0:02:52.6]}
4. O-O {[%clk 0:02:53.4]} 4... d5 {[%clk 0:02:51.9]} 5. exd5 {[%clk 0:02:53.1]}
5... exd5 {[%clk 0:02:53.8]} 6. Bb5 {[%clk 0:02:51.7]} 6... Bd7 {[%clk 0:02:49]}
7. Re1+ {[%clk 0:02:37.8]} 7... Be7 {[%clk 0:02:45.1]} 8. d3 {[%clk 0:02:34.7]}
8... Nf6 {[%clk 0:02:44]} 9. Bg5 {[%clk 0:02:19.2]} 9... O-O {[%clk 0:02:42.6]}
10. Nc3 {[%clk 0:02:14.2]} 10... a6 {[%clk 0:02:24.4]} 11. Ba4 {[%clk
0:02:02.1]} 11... b5 {[%clk 0:02:24.1]} 12. Bb3 {[%clk 0:02:01.7]} 12... Be6
{[%clk 0:02:24.8]} 13. a3 {[%clk 0:02:01.7]} 13... c4 {[%clk 0:02:23.2]} 14. Ba2
{[%clk 0:02:02]} 14... Qc7 {[%clk 0:02:21.2]} 15. Qd2 {[%clk 0:01:54.5]} 15...
Rad8 {[%clk 0:02:16.1]} 16. Bf4 {[%clk 0:01:44.2]} 16... Bd6 {[%clk 0:02:11.7]}
17. Rab1 {[%clk 0:01:32.3]} 17... Bxf4 {[%clk 0:02:01.4]} 18. Rbc1 {[%clk
0:01:34.1]} 18... Bxd2 {[%clk 0:01:54.9]} 19. Ra1 {[%clk 0:01:36]} 19... Bxe1
{[%clk 0:01:55.2]} 20. Rb1 {[%clk 0:01:37.9]} 20... Bxc3 {[%clk 0:01:55.5]} 21.
Rc1 {[%clk 0:01:39.8]} 21... Bxb2 {[%clk 0:01:55.5]} 22. Rb1 {[%clk 0:01:41.7]}
22... Bxa3 {[%clk 0:01:56]} 23. Ra1 {[%clk 0:01:43.6]} 23... Bd6 {[%clk
0:01:55.9]} 24. Rb1 {[%clk 0:01:45.5]} 24... Bg4 {[%clk 0:01:50.9]} 25. Rc1
{[%clk 0:01:47.4]} 25... Bxf3 {[%clk 0:01:50.3]} 26. Ra1 {[%clk 0:01:49.3]}
26... Bxh2+ {[%clk 0:01:50.4]} 27. Kf1 {[%clk 0:01:45]} 27... Bh5 {[%clk
0:01:48.6]} 0

[Event "Torneo Nuevo Centro. Jornada 10"]
[Site "Chess.com"]
[Date "2020.08.21"]
[Round "5"]
[White "Tormos Beltran, Maite"]
[Black "Hernández Tomás, Efrén"]
[Result "1-0"]
[WhiteElo "1441"]
[BlackElo "1105"]
[TimeControl "180+2"]
[EndTime "11:21:19 PDT"]
[Termination "Victoria de TORBEL79 por abandono"]

1. d4 {[%clk 0:03:01.9]} 1... d5 {[%clk 0:02:59.7]} 2. c4 {[%clk 0:03:01.6]}
2... c5 {[%clk 0:02:59.7]} 3. e3 {[%clk 0:03:00.7]} 3... e6 {[%clk 0:02:59.6]}
4. cxd5 {[%clk 0:03:01.2]} 4... exd5 {[%clk 0:02:58.6]} 5. dxc5 {[%clk
0:03:02.2]} 5... Bxc5 {[%clk 0:02:58.9]} 6. Nc3 {[%clk 0:03:02.7]} 6... Nf6
{[%clk 0:02:57.3]} 7. Nf3 {[%clk 0:03:02.8]} 7... Bb4 {[%clk 0:02:57]} 8. Qa4+
{[%clk 0:03:00.8]} 8... Nc6 {[%clk 0:02:54.9]} 9. Bb5 {[%clk 0:03:00.4]} 9...
Bxc3+ {[%clk 0:02:54.4]} 10. bxc3 {[%clk 0:03:00.7]} 10... Bd7 {[%clk
0:02:53.8]} 11. O-O {[%clk 0:03:00.8]} 11... Ne4 {[%clk 0:02:50.3]} 12. Ba3
{[%clk 0:02:56.3]} 12... Nxc3 {[%clk 0:02:49.3]} 13. Qb3 {[%clk 0:02:48.8]}
13... Nxb5 {[%clk 0:02:42.8]} 14. Qxb5 {[%clk 0:02:48.8]} 14... Ne5 {[%clk
0:02:33.4]} 15. Qxd5 {[%clk 0:02:37.9]} 15... Nxf3+ {[%clk 0:02:30.8]} 16. Qxf3
{[%clk 0:02:38.3]} 16... Bc6 {[%clk 0:02:31.3]} 17. e4 {[%clk 0:02:36.5]} 17...
Qd4 {[%clk 0:02:23.4]} 18. Rfe1 {[%clk 0:02:34.3]} 18... O-O-O {[%clk
0:02:09.3]} 19. Rac1 {[%clk 0:02:31]} 19... Rhf8 {[%clk 0:02:00.3]} 20. Qg4+
{[%clk 0:02:28.8]} 20... Rd7 {[%clk 0:01:55.5]} 21. Bxf8 {[%clk 0:02:26.9]}
21... Kb8 {[%clk 0:01:49.7]} 22. Bxg7 {[%clk 0:02:22.5]} 22... Qd6 {[%clk
0:01:39.9]} 23. e5 {[%clk 0:02:20.1]} 23... Qa3 {[%clk 0:01:33.7]} 24. Rxc6
{[%clk 0:02:14.5]} 24... bxc6 {[%clk 0:01:18.3]} 25. Qxd7 {[%clk 0:02:09.7]}
25... Qb4 {[%clk 0:01:12.4]} 26. Qd6+ {[%clk 0:02:05.8]} 26... Qxd6 {[%clk
0:01:02.4]} 27. exd6 {[%clk 0:02:05.7]} 1

[Event "Torneo Nuevo Centro. Jornada 10"]
[Site "Chess.com"]
[Date "2020.08.21"]
[Round "5"]
[White "Perez Garcia, Jose Miguel"]
[Black "Conon, Catalin"]
[Result "1/2-1/2"]
[WhiteElo "2065"]
[BlackElo "1922"]
[TimeControl "180+2"]
[EndTime "11:21:24 PDT"]
[Termination "Partida en tablas por mutuo acuerdo"]

1. c4 {[%clk 0:02:56.6]} 1... Nf6 {[%clk 0:03:00.4]} 2. Nc3 {[%clk 0:02:56.5]}
2... e6 {[%clk 0:03:01.6]} 3. g3 {[%clk 0:02:57.1]} 3... d5 {[%clk 0:03:02.5]}
4. cxd5 {[%clk 0:02:58.5]} 4... exd5 {[%clk 0:03:04.4]} 5. d4 {[%clk 0:02:59.7]}
5... Be7 {[%clk 0:03:05.7]} 6. Bg2 {[%clk 0:03:00.1]} 6... Kf8 {[%clk
0:03:06.1]} 7. e3 {[%clk 0:03:01.3]} 7... Kg8 {[%clk 0:03:07.3]} 8. Nge2 {[%clk
0:03:02.3]} 8... g6 {[%clk 0:03:08.8]} 9. Nf4 {[%clk 0:03:03.4]} 9... c6 {[%clk
0:03:08.2]} 10. h4 {[%clk 0:03:04.1]} 10... h5 {[%clk 0:03:08.2]} 11. b3 {[%clk
0:03:03.9]} 11... Kg7 {[%clk 0:03:07.4]} 12. Bb2 {[%clk 0:03:04.6]} 12... Nbd7
{[%clk 0:03:04.8]} 13. Qc2 {[%clk 0:03:04.2]} 13... Nf8 {[%clk 0:03:04.4]} 14.
O-O-O {[%clk 0:03:04.2]} 14... Ne6 {[%clk 0:03:01.2]} 15. Nce2 {[%clk
0:02:59.9]} 15... Nxf4 {[%clk 0:02:56.9]} 16. Nxf4 {[%clk 0:03:01.8]} 16... Bf5
{[%clk 0:02:43]} 17. Qc3 {[%clk 0:02:55]} 17... Bd6 {[%clk 0:02:42.1]} 18. Nd3
{[%clk 0:02:54.3]} 18... Ne4 {[%clk 0:02:28.2]} 19. Qc2 {[%clk 0:02:53]} 19...
a5 {[%clk 0:02:09.1]} 20. Bh3 {[%clk 0:02:50]} 20... Bxh3 {[%clk 0:02:09]} 21.
Rxh3 {[%clk 0:02:50.7]} 21... Qd7 {[%clk 0:02:09.2]} 22. Rhh1 {[%clk 0:02:51.2]}
22... a4 {[%clk 0:02:01]} 23. Rhg1 {[%clk 0:02:43.1]} 23... axb3 {[%clk
0:02:00.6]} 24. Qxb3 {[%clk 0:02:44.2]} 24... Ra7 {[%clk 0:01:23.8]} 25. Kb1
{[%clk 0:02:41.9]} 25... Rha8 {[%clk 0:01:23.9]} 26. Ne5 {[%clk 0:02:40.8]}
26... Qe6 {[%clk 0:01:12.1]} 27. f3 {[%clk 0:02:34.8]} 27... Nf6 {[%clk
0:01:10.3]} 28. g4 {[%clk 0:02:35.1]} 28... hxg4 {[%clk 0:01:08.6]} 29. fxg4
{[%clk 0:02:31.2]} 29... Ba3 {[%clk 0:00:51]} 1/2-1